[Event "44th Chess Olympiad Women 2022"]
[Site "Chennai"]
[Date "2022.08.02"]
[Round "5.78"]
[White "Demchenko, Svitlana"]
[Black "Rivera Negron Yanira"]
[Result "1-0"]
[ECO "C00"]
[WhiteElo "2122"]
[BlackElo "1770"]
[Annotator "NA RC"]
[PlyCount "37"]
[EventDate "2022.07.29"]
[EventType "team-tourn"]
[EventCountry "IND"]
[SourceTitle "playchess.com"]
[Source "ChessBase"]
[SourceQuality "1"]
[WhiteTeam "Canada"]
[BlackTeam "Puerto Rico"]
[WhiteTeamCountry "CAN"]
[BlackTeamCountry "PUR"]
[TimeControl "40/5400+30:1800+30"]

1. e4 {[%emt 0:00:03]} e6 {[%emt 0:00:21]} 2. b3 {[%emt 0:00:08]} d5 {[%emt 0:01:21]} 3. Bb2 {[%emt 0:00:08]} Nf6 {[%emt 0:03:18]} 4. e5 {[%emt 0:00:14]} Nfd7 {[%emt 0:00:44]} 5. Qg4 {[%emt 0:00:12]} c5 {[%emt 0:05:04]} 6. f4 {[%emt 0:00:10]} Nc6 {[%emt 0:03:29]} 7. Nf3 {[%emt 0:00:10]} Qc7 {[%emt 0:05:28]} 8. Be2 {[%emt 0:00:34]} b6 {[%emt 0:06:42]} 9. O-O {[%emt 0:06:01]} g6 {[%emt 0:05:56]} 10. Nc3 {[%emt 0:04:14]} a6 {[%emt 0:11:31]} 11. Nxd5 {[%emt 0:14:58]} exd5 {[%emt 0:13:23]} 12. e6 {[%emt 0:00:11]} Nd4 {[%emt 0:09:50]} 13. Bxd4 {[%emt 0:08:37]} cxd4 {[%emt 0:03:51]} 14. exd7+ {[%emt 0:00:27]} Bxd7 {[%emt 0:03:14]} 15. Qg5 {[%emt 0:01:37]} Bc6 {[%emt 0:08:37]} 16. Qf6 {[%emt 0:03:48]} Rg8 {[%emt 0:01:48]} 17. Rae1 {[%emt 0:02:34]} Bd6 {[%emt 0:08:30]} 18. Bb5+ {[%emt 0:01:51]} Kf8 {[%emt 0:02:17]} 19. Ng5 {[%emt 0:00:29]} 1-0

[Event "44th Chess Olympiad Women 2022"]
[Site "Chennai"]
[Date "2022.08.02"]
[Round "5.78"]
[White "Morales Santos, Natasha"]
[Black "Ouellet, Maili-Jade"]
[Result "0-1"]
[ECO "D35"]
[WhiteElo "1924"]
[BlackElo "2239"]
[Annotator "NA RC"]
[PlyCount "90"]
[EventDate "2022.07.29"]
[EventType "team-tourn"]
[EventCountry "IND"]
[SourceTitle "playchess.com"]
[Source "ChessBase"]
[SourceQuality "1"]
[WhiteTeam "Puerto Rico"]
[BlackTeam "Canada"]
[WhiteTeamCountry "PUR"]
[BlackTeamCountry "CAN"]
[TimeControl "40/5400+30:1800+30"]

1. d4 {[%emt 0:00:12]} Nf6 {[%emt 0:00:04]} 2. c4 {[%emt 0:00:11]} e6 {[%emt 0:00:04]} 3. Nc3 {[%emt 0:00:10]} d5 {[%emt 0:00:16]} 4. cxd5 {[%emt 0:00:14]} exd5 {[%emt 0:00:03]} 5. Bg5 {[%emt 0:00:17]} Be7 {[%emt 0:00:06]} 6. e3 {[%emt 0:00:14]} c6 {[%emt 0:00:08]} 7. Bd3 {[%emt 0:00:12]} Nbd7 {[%emt 0:00:22]} 8. h3 {[%emt 0:00:24]} O-O {[%emt 0:00:40]} 9. Bf4 {[%emt 0:00:32]} Re8 {[%emt 0:01:55]} 10. Qc2 {[%emt 0:00:40]} a6 {[%emt 0:02:26]} 11. Nge2 {[%emt 0:02:47]} c5 {[%emt 0:04:33]} 12. dxc5 {[%emt 0:07:22]} Nxc5 {[%emt 0:02:49]} 13. O-O {[%emt 0:02:18]} Nxd3 {[%emt 0:07:59]} 14. Qxd3 {[%emt 0:00:59]} Be6 {[%emt 0:00:59]} 15. Rfd1 {[%emt 0:04:43]} b5 {[%emt 0:16:11]} 16. Nd4 {[%emt 0:03:34]} Qb6 {[%emt 0:03:09]} 17. Rac1 {[%emt 0:03:07]} Rac8 {[%emt 0:00:40]} 18. Nf5 {[%emt 0:20:59]} Bf8 {[%emt 0:18:02]} 19. Bg5 {[%emt 0:05:52]} Ne4 {[%emt 0:07:20]} 20. Nxe4 {[%emt 0:09:15]} Rxc1 {[%emt 0:04:56]} 21. Nh6+ {[%emt 0:03:37]} Kh8 {[%emt 0:00:29]} 22. Rxc1 {[%emt 0:02:13]} dxe4 {[%emt 0:01:36]} 23. Qc3 {[%emt 0:04:31]} Rc8 {[%emt 0:02:52]} 24. Qxc8 {[%emt 0:03:35]} Bxc8 {[%emt 0:00:06]} 25. Rxc8 {[%emt 0:00:12]} gxh6 {[%emt 0:00:29]} 26. Rxf8+ {[%emt 0:00:20]} Kg7 {[%emt 0:00:04]} 27. Be7 {[%emt 0:00:23]} Qc7 {[%emt 0:04:49]} 28. Re8 {[%emt 0:06:42]} Qc1+ {[%emt 0:00:34]} 29. Kh2 {[%emt 0:00:10]} Qxb2 {[%emt 0:00:26]} 30. a3 {[%emt 0:03:34]} f6 {[%emt 0:07:13]} 31. Bc5 {[%emt 0:04:37]} Qxf2 {[%emt 0:00:54]} 32. Ra8 {[%emt 0:02:06]} Qc2 {[%emt 0:00:59]} 33. Ra7+ {[%emt 0:03:08]} Kg6 {[%emt 0:00:52]} 34. Bd4 {[%emt 0:02:14]} Qc6 {[%emt 0:00:31]} 35. g4 {[%emt 0:02:23]} Qd6+ {[%emt 0:00:33]} 36. Kg2 {[%emt 0:00:21]} Qxa3 {[%emt 0:01:31]} 37. h4 {[%emt 0:00:30]} h5 {[%emt 0:02:47]} 38. gxh5+ {[%emt 0:03:03]} Kxh5 {[%emt 0:01:05]} 39. Rxh7+ {[%emt 0:00:02]} Kg4 {[%emt 0:01:45]} 40. h5 {[%emt 0:00:57]} Qa2+ {[%emt 0:00:19]} 41. Kg1 {[%emt 0:02:27]} Qb1+ {[%emt 0:00:43]} 42. Kg2 {[%emt 0:11:11]} Qc2+ {[%emt 0:00:10]} 43. Kg1 {[%emt 0:00:21]} Qd1+ {[%emt 0:00:41]} 44. Kg2 {[%emt 0:00:02]} Qe2+ {[%emt 0:00:06]} 45. Kg1 {[%emt 0:00:28]} Kh3 {[%emt 0:00:07]} 0-1

[Event "44th Chess Olympiad Women 2022"]
[Site "Chennai"]
[Date "2022.08.02"]
[Round "5.78"]
[White "Vega Jimenez, Keyshla M."]
[Black "Mills, Morgen"]
[Result "0-1"]
[ECO "C27"]
[WhiteElo "1653"]
[BlackElo "1993"]
[Annotator "NA RC"]
[PlyCount "128"]
[EventDate "2022.07.29"]
[EventType "team-tourn"]
[EventCountry "IND"]
[SourceTitle "playchess.com"]
[Source "ChessBase"]
[SourceQuality "1"]
[WhiteTeam "Puerto Rico"]
[BlackTeam "Canada"]
[WhiteTeamCountry "PUR"]
[BlackTeamCountry "CAN"]
[TimeControl "40/5400+30:1800+30"]

1. e4 {[%emt 0:00:03]} e5 {[%emt 0:00:23]} 2. Bc4 {[%emt 0:00:37]} Nf6 {[%emt 0:00:52]} 3. d3 {[%emt 0:00:17]} c6 {[%emt 0:00:42]} 4. Nc3 {[%emt 0:01:53]} d5 {[%emt 0:01:44]} 5. exd5 {[%emt 0:01:40]} cxd5 {[%emt 0:00:10]} 6. Bb3 {[%emt 0:01:34]} Be7 {[%emt 0:02:08]} 7. h3 {[%emt 0:03:48]} O-O {[%emt 0:00:51]} 8. Nf3 {[%emt 0:01:19]} Nc6 {[%emt 0:02:38]} 9. O-O {[%emt 0:02:19]} Be6 {[%emt 0:18:56]} 10. Re1 {[%emt 0:06:52]} Qd6 {[%emt 0:00:37]} 11. Qe2 {[%emt 0:14:12]} Nd7 {[%emt 0:05:03]} 12. Bd2 {[%emt 0:08:26]} f6 {[%emt 0:01:34]} 13. a3 {[%emt 0:02:07]} a6 {[%emt 0:01:43]} 14. Rad1 {[%emt 0:01:35]} Bf7 {[%emt 0:02:24]} 15. Ba2 {[%emt 0:10:36]} Rfe8 {[%emt 0:01:30]} 16. Qf1 {[%emt 0:03:39]} Rac8 {[%emt 0:00:31]} 17. Ne2 {[%emt 0:00:54]} g6 {[%emt 0:09:20]} 18. Ng3 {[%emt 0:07:41]} Bf8 {[%emt 0:00:53]} 19. c4 {[%emt 0:02:38]} Bg7 {[%emt 0:09:32]} 20. b4 {[%emt 0:02:04]} b6 {[%emt 0:04:15]} 21. cxd5 {[%emt 0:05:59]} Bxd5 {[%emt 0:00:13]} 22. Ne4 {[%emt 0:00:09]} Qe6 {[%emt 0:00:15]} 23. Bxd5 {[%emt 0:03:35]} Qxd5 {[%emt 0:00:05]} 24. Rc1 {[%emt 0:01:06]} Nf8 {[%emt 0:06:22]} 25. Be3 {[%emt 0:01:17]} Nd4 {[%emt 0:01:34]} 26. Nxd4 {[%emt 0:03:50]} exd4 {[%emt 0:00:06]} 27. Bf4 {[%emt 0:01:21]} f5 {[%emt 0:03:17]} 28. Nd6 {[%emt 0:03:32]} Rxc1 {[%emt 0:00:07]} 29. Nxe8 {[%emt 0:00:08]} Rxe1 {[%emt 0:01:00]} 30. Qxe1 {[%emt 0:00:06]} Qe6 {[%emt 0:02:38]} 31. Qxe6+ {[%emt 0:01:10]} Nxe6 {[%emt 0:00:06]} 32. Bd6 {[%emt 0:01:46]} Bf8 {[%emt 0:08:42]} 33. Be5 {[%emt 0:01:26]} Kf7 {[%emt 0:00:53]} 34. Nc7 {[%emt 0:02:29]} a5 {[%emt 0:03:04]} 35. Nxe6 {[%emt 0:00:42]} Kxe6 {[%emt 0:00:06]} 36. Bxd4 {[%emt 0:00:06]} axb4 {[%emt 0:00:56]} 37. axb4 {[%emt 0:00:08]} b5 {[%emt 0:00:13]} 38. Bc3 {[%emt 0:01:20]} Kd5 {[%emt 0:01:20]} 39. Kf1 {[%emt 0:00:16]} Bd6 {[%emt 0:01:10]} 40. Ke2 {[%emt 0:00:28]} Bc7 {[%emt 0:01:08]} 41. Kf3 {[%emt 0:31:14]} Bd6 {[%emt 0:35:37]} 42. Ke3 {[%emt 0:02:09]} Bc7 {[%emt 0:00:09]} 43. f3 {[%emt 0:01:01]} Bg3 {[%emt 0:00:59]} 44. f4 {[%emt 0:01:50]} Bh4 {[%emt 0:01:06]} 45. Kf3 {[%emt 0:00:00]} Be7 {[%emt 0:00:00]} 46. Ke3 {[%emt 0:00:00]} Bd8 {[%emt 0:00:00]} 47. Be1 {[%emt 0:00:00]} Bf6 {[%emt 0:00:00]} 48. Bd2 {[%emt 0:00:00]} Bb2 {[%emt 0:00:00]} 49. Ke2 {[%emt 0:00:00]} Kd4 {[%emt 0:00:00]} 50. Be3+ {[%emt 0:00:00]} Kc3 {[%emt 0:00:00]} 51. Bc5 {[%emt 0:00:00]} Ba3 {[%emt 0:00:00]} 52. Bd6 {[%emt 0:00:00]} Bxb4 {[%emt 0:00:00]} 53. Be5+ {[%emt 0:00:00]} Kb3 {[%emt 0:00:00]} 54. g4 {[%emt 0:00:00]} Bc3 {[%emt 0:00:00]} 55. Ke3 {[%emt 0:00:42]} b4 {[%emt 0:00:00]} 56. Bd6 {[%emt 0:02:17]} Kc2 {[%emt 0:00:00]} 57. Bxb4 {[%emt 0:02:09]} Bxb4 {[%emt 0:00:00]} 58. gxf5 {[%emt 0:00:40]} gxf5 {[%emt 0:00:00]} 59. Kd4 {[%emt 0:00:19]} Bc3+ {[%emt 0:00:00]} 60. Ke3 {[%emt 0:02:27]} Bf6 {[%emt 0:00:00]} 61. d4 {[%emt 0:00:27]} Kc3 {[%emt 0:00:00]} 62. d5 {[%emt 0:00:25]} Kc4 {[%emt 0:00:00]} 63. d6 {[%emt 0:00:13]} Kc5 {[%emt 0:00:00]} 64. d7 {[%emt 0:00:16]} Kd6 {[%emt 0:00:00]} 0-1

[Event "44th Chess Olympiad Women 2022"]
[Site "Chennai"]
[Date "2022.08.02"]
[Round "5.78"]
[White "Guo, Yu Han"]
[Black "Comas Colon, Rinelly M."]
[Result "1-0"]
[ECO "E70"]
[WhiteElo "1630"]
[BlackElo "1585"]
[Annotator "NA RC COMBH"]
[PlyCount "61"]
[EventDate "2022.07.29"]
[EventType "team-tourn"]
[EventCountry "IND"]
[SourceTitle "playchess.com"]
[Source "ChessBase"]
[SourceQuality "1"]
[WhiteTeam "Canada"]
[BlackTeam "Puerto Rico"]
[WhiteTeamCountry "CAN"]
[BlackTeamCountry "PUR"]
[TimeControl "40/5400+30:1800+30"]

1. d4 {[%emt 0:00:01]} Nf6 {[%emt 0:00:10]} 2. c4 {[%emt 0:00:09]} g6 {[%emt 0:00:20]} 3. Nc3 {[%emt 0:00:12]} Bg7 {[%emt 0:00:21]} 4. e4 {[%emt 0:00:08]} d6 {[%emt 0:00:12]} 5. Nge2 {[%emt 0:00:11]} O-O {[%emt 0:01:17]} 6. Ng3 {[%emt 0:00:07]} e5 {[%emt 0:01:16]} 7. d5 {[%emt 0:00:11]} a5 {[%emt 0:00:57]} 8. h4 {[%emt 0:00:20]} h5 {[%emt 0:00:57]} 9. Bg5 {[%emt 0:01:21]} Qe8 {[%emt 0:01:07]} 10. Nb5 {[%emt 0:00:52]} Na6 {[%emt 0:00:57]} 11. Qd2 {[%emt 0:01:07]} b6 {[%emt 0:03:11]} 12. Be2 {[%emt 0:01:35]} Ng4 {[%emt 0:12:01]} 13. f3 {[%emt 0:08:45]} Nf6 {[%emt 0:02:27]} 14. Bh6 {[%emt 0:02:39]} Kh7 {[%emt 0:05:46]} 15. Bxg7 {[%emt 0:01:25]} Kxg7 {[%emt 0:00:04]} 16. Qg5 {[%emt 0:02:12]} Rh8 {[%emt 0:01:54]} 17. O-O-O {[%emt 0:02:23]} Ng8 {[%emt 0:05:15]} 18. Rhf1 {[%emt 0:06:23]} Qe7 {[%emt 0:06:49]} 19. Qe3 {[%emt 0:01:56]} Nf6 {[%emt 0:03:53]} 20. Rf2 {[%emt 0:04:12]} a4 {[%emt 0:09:51]} 21. Rdf1 {[%emt 0:02:33]} Rf8 {[%emt 0:06:30]} 22. Qg5 {[%emt 0:03:01]} Kh7 {[%emt 0:04:43]} 23. f4 {[%emt 0:01:07]} Bg4 {[%emt 0:08:41]} 24. Bxg4 {[%emt 0:01:49]} hxg4 {[%emt 0:02:55]} 25. fxe5 {[%emt 0:00:33]} dxe5 {[%emt 0:06:59]} 26. Rxf6 {[%emt 0:00:41]} Nc5 {[%emt 0:01:48]} 27. Nf5 {[%emt 0:00:25]} Qxf6 {[%emt 0:04:25]} 28. Qxf6 {[%emt 0:00:04]} gxf5 {[%emt 0:00:16]} 29. Rxf5 {[%emt 0:00:07]} Nd3+ {[%emt 0:02:56]} 30. Kb1 {[%emt 0:00:04]} Nf4 {[%emt 0:03:19]} 31. g3 {[%emt 0:00:12]} 1-0